bitfinex-derivatives/quotes_ETHF0:USTF0_20260204
["timestamp","ask_amount","ask_price","bid_price","bid_amount"]
[1770238617319,41.65493528,2170.7,2169.8,0.23089]
[1770238617522,41.65493528,2170.7,2169.9,0.46685356]
[1770238617825,41.16955262,2170.8,2170.1,0.46685356]
[1770238618118,0.48538266,2170.9,2170.1,0.46685356]
[1770238618418,0.49115971,2170.9,2170.1,0.46685356]
[1770238618622,0.00577705,2170.9,2170.1,0.46685356]
[1770238619324,0.00577705,2170.9,2170.4,0.48531733]
[1770238619626,0.48538266,2171.2,2170.4,0.48892193]
[1770238619921,0.48538266,2171.2,2170.6,0.48531733]
[1770238620321,41.16955262,2171.3,2170.6,0.48531733]
[1770238620518,40.8,2171.2,2170.6,0.48531733]
[1770238620723,1.17e-06,2171.3,2170.9,0.48531733]
[1770238621516,1.17e-06,2171.3,2171.0,0.48531733]
[1770238622227,0.49042172,2172.0,2171.0,0.48531733]
[1770238622424,0.49042172,2172.3,2171.2,0.48531733]
[1770238622821,41.29042172,2172.2,2171.2,0.48531733]
[1770238623426,0.49042172,2172.1,2170.7,0.48531733]
[1770238624225,0.49042172,2172.1,2171.1,0.23075]
[1770238624419,0.49042172,2172.1,2171.2,0.48531733]
[1770238625529,40.80439959,2172.2,2171.2,0.48531733]
[1770238625729,41.29482131,2172.2,2171.2,0.48531733]
[1770238626131,0.49042172,2172.1,2171.2,0.48531733]
[1770238626328,0.49042172,2172.1,2171.1,0.23075]
[1770238626529,0.49042172,2172.1,2171.0,0.48531733]
[1770238627322,0.49042172,2172.1,2170.9,0.461]
[1770238628029,0.49042172,2172.1,2171.0,0.48531733]
[1770238628231,0.49042172,2172.1,2170.9,0.461]
[1770238629025,0.49042172,2172.1,2170.9,0.94631733]
[1770238630130,0.49042172,2172.1,2171.0,0.48531733]
[1770238631230,0.49042172,2172.1,2170.9,0.461]
[1770238631531,0.49042172,2172.1,2170.9,0.94631733]
[1770238633031,0.49042172,2172.1,2171.0,0.48531733]
[1770238633225,26.03215835,2172.8,2171.8,1.06111]
[1770238633426,33.42735952,2173.4,2172.0,2.12212]
[1770238633627,33.42735952,2173.2,2172.3,0.23063]
[1770238633930,0.50861214,2173.1,2172.1,3.18785626]
[1770238634129,0.50861214,2173.0,2172.1,0.461]
[1770238634331,0.50861214,2172.9,2172.2,5.21567917]
[1770238634525,0.50861214,2172.9,2172.1,3.19369799]
[1770238634731,0.50861214,2172.9,2172.1,0.46684173]
[1770238634929,0.50861214,2172.9,2172.1,3.19369799]
[1770238635125,0.50861214,2172.9,2172.2,0.9207]
[1770238636133,0.00577888,2173.1,2172.2,3.87818626]
[1770238636324,33.4331384,2173.1,2172.2,3.87818626]
[1770238636525,0.00577888,2173.1,2172.3,5.17194608]
[1770238636729,0.00577888,2173.1,2172.2,3.87818626]
[1770238636927,0.00577888,2173.1,2172.2,1.15133]
[1770238637126,8.88e-06,2173.1,2172.4,2.72685626]
[1770238637428,8.88e-06,2173.1,2172.6,0.00574043]
[1770238637632,8.88e-06,2173.1,2172.8,0.00574043]
[1770238637832,8.88e-06,2173.1,2172.9,0.00574043]
[1770238638032,0.50574192,2173.9,2172.9,0.00574043]
[1770238638330,33.42735952,2173.8,2172.9,0.00574043]
[1770238638833,40.8,2174.1,2173.1,0.00574043]
[1770238639033,33.42735952,2173.9,2173.1,0.00574043]
[1770238639333,0.00169463,2174.1,2173.6,0.23049]
[1770238640332,12.62016378,2173.8,2173.0,0.23055]
[1770238640524,19.98284909,2173.8,2173.0,0.23055]
[1770238641226,19.98284909,2173.8,2173.1,0.23054]
[1770238641835,0.50961802,2173.7,2172.7,2.72685626]
[1770238642029,0.50961802,2173.7,2172.6,0.2306]
[1770238642030,0.50961802,2173.5,2172.6,0.2306]
[1770238642229,13.1297818,2173.5,2172.6,0.2306]
[1770238642529,33.11263089,2173.4,2172.6,0.2306]
[1770238642730,19.98284909,2174.0,2172.8,0.46058823]
[1770238642926,32.60301287,2174.0,2173.0,0.23055]
[1770238643131,53.42016378,2173.9,2173.0,0.23055]
[1770238643331,12.62016378,2173.8,2173.0,0.23055]
[1770238643534,19.98284909,2173.8,2173.0,0.69650855]
[1770238644035,19.48887909,2173.8,2173.2,0.23053]
[1770238644533,12.62016378,2173.5,2173.2,0.23053]
[1770238644733,13.09567862,2173.5,2172.7,3.19212787]
[1770238644934,32.10904287,2173.4,2172.7,0.46527161]
[1770238645136,32.58455771,2173.4,2172.6,2.95744626]
[1770238645336,13.09567862,2173.3,2172.6,0.23059]
[1770238645737,32.58455771,2173.2,2172.6,0.23059]
[1770238645936,0.47551484,2173.2,2172.6,0.23059]
[1770238646140,32.58455771,2173.1,2172.6,0.23059]
[1770238646437,0.47551484,2173.1,2172.6,0.23059]
[1770238646639,13.09567862,2173.1,2172.6,0.23059]
[1770238646938,32.10904287,2173.0,2172.6,0.23059]
[1770238647135,32.10904287,2173.0,2172.3,4.08897284]
[1770238647136,12.62016378,2172.7,2172.3,2.72685626]
[1770238647336,12.62016378,2172.8,2172.2,3.64755626]
[1770238647537,32.10904287,2172.8,2172.3,7.89914204]
[1770238647839,12.62016378,2172.7,2172.3,2.72685626]
[1770238648040,12.62016378,2172.7,2172.2,3.64755626]
[1770238648240,19.48887909,2172.6,2172.3,7.88816151]
[1770238648436,19.48887909,2172.6,2172.3,2.72685626]
[1770238648636,32.10904287,2172.6,2172.3,2.72685626]
[1770238649244,32.10904287,2172.6,2172.4,7.88844963]
[1770238649436,19.25834909,2172.6,2172.4,2.72685626]
[1770238649742,0.50826075,2173.6,2172.7,1.06067]
[1770238649941,0.50826075,2173.6,2173.1,2.95342104]
[1770238650141,18.65674146,2173.5,2173.2,5.16405355]
[1770238650337,0.50826075,2173.4,2173.1,2.95342104]
[1770238650537,11.59457378,2173.3,2173.1,2.95342104]
[1770238650744,11.59457378,2173.6,2173.2,7.86180347]
[1770238650942,11.59457378,2173.6,2173.2,2.72288104]
[1770238651142,11.59457378,2173.4,2173.2,2.72288104]
[1770238651341,11.59457378,2173.5,2173.2,2.72288104]
[1770238651644,29.27779449,2173.4,2173.2,2.72288104]
[1770238651844,11.12931378,2173.5,2173.2,2.72288104]
[1770238652244,11.12931378,2173.4,2173.1,2.95342104]
[1770238652445,11.60482862,2173.4,2173.2,5.14131485]
[1770238652640,29.27779449,2173.3,2173.1,2.95342104]
[1770238652841,11.12931378,2173.2,2173.1,2.72288104]
[1770238653036,11.12931378,2173.2,2171.9,14.62031057]
[1770238653037,1.36864012,2173.1,2172.5,0.93651452]
[1770238653341,1.36864012,2173.0,2172.5,0.93651452]
[1770238653539,1.36864012,2172.8,2172.5,0.46]
[1770238653940,16.46832044,2172.7,2172.5,0.46]
[1770238654143,16.46832044,2173.1,2172.3,0.47651452]
[1770238654344,15.85581044,2173.1,2172.3,0.47651452]
[1770238655545,15.85581044,2173.1,2172.2,1.15134]
[1770238655546,15.85581044,2173.1,2172.5,0.47651452]
[1770238655945,15.85581044,2173.1,2172.5,0.70712452]
[1770238656146,15.85581044,2173.1,2172.6,0.47651452]
[1770238656348,0.46431452,2173.8,2172.9,0.47651452]
[1770238656548,15.73212615,2173.8,2172.9,0.47651452]
[1770238657240,15.26781163,2173.7,2172.9,0.47651452]
[1770238658250,15.26781163,2173.7,2172.9,0.70707452]
[1770238658454,15.26781163,2173.7,2173.0,0.70706452]
[1770238659951,15.73052311,2173.7,2173.0,0.23055]
[1770238660147,15.73052311,2173.7,2172.8,0.47651452]
[1770238660148,0.46271148,2173.6,2172.8,0.47651452]
[1770238660350,0.46271148,2173.6,2172.6,0.47651452]
[1770238660650,15.73052311,2173.5,2172.6,0.47651452]
[1770238660851,0.46271148,2173.5,2172.5,0.20711452]
[1770238661050,15.74332647,2173.4,2172.5,7.01431713]
[1770238661251,0.47551484,2173.4,2172.5,7.01431713]
[1770238661550,15.26781163,2173.3,2172.5,6.80720261]
[1770238661750,15.74332647,2173.6,2172.7,0.23058]
[1770238661948,0.47551484,2173.6,2172.7,0.23058]
[1770238662149,15.74332647,2173.5,2172.7,0.23058]
[1770238662449,0.47551484,2173.5,2172.7,0.23058]
[1770238662651,15.26781163,2173.4,2172.7,0.23058]
[1770238663251,15.26781163,2173.4,2172.7,7.51429713]
[1770238663446,6.87059109,2173.4,2172.9,0.47651452]
[1770238663647,5.75483109,2173.4,2173.0,0.47651452]
[1770238663844,0.47551484,2173.8,2173.1,0.23054]
[1770238664647,0.47551484,2173.8,2172.8,0.47651452]
[1770238664953,0.47551484,2173.6,2172.3,0.23063]
[1770238665150,0.47551484,2173.6,2172.4,4.79858193]
[1770238665450,0.47551484,2173.6,2172.5,4.79858193]
[1770238665650,0.47551484,2173.6,2172.6,4.79858193]
[1770238665952,0.47551484,2173.6,2172.7,4.79858193]
[1770238666151,0.47551484,2173.6,2172.4,0.47651452]
[1770238666351,0.47551484,2173.6,2172.5,5.25739869]
[1770238666552,0.47551484,2173.6,2172.6,4.78088417]
[1770238666857,0.47551484,2173.6,2172.7,4.78088417]
[1770238667054,0.47551484,2173.6,2172.6,0.9205]
[1770238667256,0.47551484,2173.6,2172.7,4.78046907]
[1770238667448,0.47551484,2173.6,2172.6,0.9205]
[1770238667649,0.47551484,2173.6,2172.7,4.77779425]
[1770238667849,0.47551484,2173.6,2172.6,0.9205]
[1770238668144,0.47551484,2173.6,2172.7,4.77779876]
[1770238668351,0.47551484,2173.6,2172.6,0.9205]
[1770238668544,0.47551484,2173.6,2172.7,4.77818962]
[1770238668749,0.47551484,2173.6,2172.6,0.9205]
[1770238668952,0.47551484,2173.6,2172.7,4.77778056]
[1770238669152,0.47551484,2173.6,2172.6,0.9205]
[1770238669354,0.23049,2173.6,2172.7,4.35080959]
[1770238669651,0.23049,2173.6,2172.6,0.9205]
[1770238669852,0.23051,2173.5,2172.6,0.9205]
[1770238670251,4.622,2173.7,2172.2,0.47651452]
[1770238670455,2.21698886,2173.5,2172.2,0.47651452]
[1770238670753,0.23051,2173.4,2172.2,0.47651452]
[1770238671256,0.001054,2173.3,2172.2,0.47651452]
[1770238671752,40.8,2173.2,2172.2,0.47651452]
[1770238671953,0.001054,2173.1,2172.2,0.47651452]
[1770238677161,40.8,2173.0,2172.2,0.47651452]
[1770238677359,41.26,2173.0,2172.1,0.00584173]
[1770238677564,41.49056,2173.0,2171.8,0.46]
[1770238677760,0.23057,2172.9,2171.8,0.97148195]
[1770238678160,0.23057,2172.9,2171.8,0.51148195]
[1770238678564,0.23057,2172.9,2171.8,0.51547467]
[1770238679263,0.004622,2172.8,2171.8,0.51547467]
[1770238681163,0.23057,2172.9,2171.8,0.51547467]
[1770238681367,41.26,2173.0,2172.0,0.50849868]
[1770238681964,41.26,2173.0,2172.2,0.50849868]
[1770238683072,41.26,2173.0,2172.4,0.50849868]
[1770238683669,0.46,2173.0,2172.4,0.50849868]
[1770238684068,41.26,2173.0,2172.4,0.50849868]
[1770238684270,0.02263906,2172.9,2172.1,0.49955154]
[1770238687969,41.26,2173.0,2172.1,0.49955154]
[1770238688475,0.48559788,2173.0,2172.1,0.49955154]
[1770238688667,0.02559788,2172.8,2171.8,0.50354426]
[1770238688867,0.02559788,2172.6,2171.8,0.00399272]
[1770238689475,0.02550753,2172.5,2171.2,4.80463067]
[1770238689775,0.02550753,2172.5,2171.3,5.1960566]
[1770238690070,13.87283101,2173.3,2171.2,4.80463067]
[1770238690071,0.46387565,2174.0,2172.9,0.23056]
[1770238690372,0.46387565,2173.6,2172.0,0.23066]
[1770238690572,0.46387565,2173.4,2172.1,5.0021401]
[1770238690770,0.69439565,2173.3,2172.0,0.00513126]
[1770238690978,0.46387565,2173.1,2172.1,5.00310522]
[1770238691276,0.46387565,2173.1,2172.0,0.00513126]
[1770238692181,0.46387565,2173.0,2172.0,0.00513126]
[1770238692971,0.69443565,2173.0,2172.0,0.00513126]
[1770238693173,0.46387565,2172.8,2172.0,0.00513126]
[1770238695974,40.8,2172.7,2172.0,0.00513126]
[1770238696178,0.46387565,2172.6,2172.0,0.00513126]
[1770238701580,41.26387565,2172.5,2172.0,0.00513126]
[1770238701780,0.46387565,2172.4,2172.0,0.00513126]
[1770238702981,41.26387565,2172.5,2172.0,0.00513126]
[1770238704981,40.8,2172.5,2172.0,0.493881]
[1770238706382,0.49556507,2172.9,2172.0,0.493881]
[1770238706782,40.8,2172.8,2172.0,0.493881]
[1770238707183,40.8,2172.8,2172.2,0.48874974]
[1770238707878,41.29556507,2172.8,2172.0,0.493881]
[1770238708178,41.29556507,2172.8,2172.1,5.00442368]
[1770238708383,0.49556507,2172.7,2172.0,0.493881]
[1770238708583,0.49556507,2172.7,2172.0,0.00513126]
[1770238710285,0.72615507,2172.7,2172.0,0.00513126]
[1770238710486,0.49556507,2172.6,2171.7,4.11288067]
[1770238710683,0.49556507,2172.6,2171.5,5.9767754]
[1770238710882,0.49556507,2172.6,2171.5,0.48874974]
[1770238711083,0.49556507,2172.5,2171.5,0.48874974]
[1770238711479,0.49556507,2172.5,2171.5,0.0056452]
[1770238711784,0.49556507,2172.4,2171.5,0.0056452]
[1770238712881,0.49556507,2172.4,2171.5,0.49439494]
[1770238715288,0.49556507,2172.4,2171.6,0.48874974]
[1770238715484,0.49556507,2172.4,2171.5,2.74830644]
[1770238715689,0.49556507,2172.4,2171.5,0.49439494]
[1770238716091,0.23061,2172.5,2171.6,0.48874974]
[1770238716688,41.29556507,2172.8,2171.8,0.48874974]
[1770238717291,41.29556507,2172.8,2172.0,0.48874974]
[1770238717596,40.8,2172.8,2172.0,0.48874974]
[1770238717893,40.8,2172.8,2172.1,5.44644507]
[1770238718096,40.8,2172.8,2172.1,0.48874974]
[1770238718692,40.8,2172.8,2172.1,3.23141098]
[1770238718999,40.8,2172.8,2172.2,0.48874974]
[1770238719390,40.8,2172.8,2172.3,0.48874974]
[1770238720288,40.8,2172.8,2172.2,2.74266124]
[1770238720289,41.29556507,2172.8,2172.2,2.74266124]
[1770238720494,0.49556507,2172.7,2172.1,2.74266124]
[1770238720690,0.49556507,2172.7,2172.0,2.74266124]
[1770238721091,40.8,2172.8,2172.2,1.40904974]
[1770238721287,40.8,2172.8,2172.3,0.48874974]
[1770238725999,0.461,2173.1,2172.4,0.48874974]
[1770238726898,40.8,2173.0,2172.4,0.48874974]
[1770238727102,0.461,2173.1,2172.6,0.48874974]
[1770238727600,41.261,2173.1,2172.6,0.48874974]
[1770238728500,41.75656507,2173.1,2172.4,3.23141098]
[1770238730500,0.49556507,2173.0,2172.4,3.23141098]
[1770238730698,0.49556507,2172.8,2172.2,5.03530231]
[1770238730902,0.49556507,2172.6,2172.2,0.9203]
[1770238732805,40.374,2172.7,2172.3,0.48874974]
[1770238733302,0.461,2173.0,2172.3,0.48874974]
[1770238733704,0.49556507,2172.9,2172.2,0.9203]
[1770238738404,0.23058,2172.8,2171.7,0.50816836]
[1770238738608,0.23058,2172.8,2171.6,0.50816836]
[1770238739105,40.8,2172.7,2171.6,0.50816836]
[1770238740210,4.616,2173.5,2172.6,0.50998355]
[1770238740405,1.05998,2174.2,2172.4,0.50998355]
[1770238740610,0.23048,2173.8,2172.6,0.50998355]
[1770238741014,40.8,2174.1,2172.6,0.74057355]
[1770238741204,40.8,2174.1,2173.2,0.50998355]
[1770238741410,40.80368567,2174.1,2173.3,0.51232577]
[1770238742906,41.03412567,2174.1,2173.2,0.00373238]
[1770238743213,41.03412567,2174.1,2173.2,0.51605815]
[1770238744013,41.03412567,2174.1,2173.2,0.00373238]
[1770238744808,0.23046,2173.9,2172.8,0.52030805]
[1770238745013,0.23047,2173.8,2172.7,0.9196]
[1770238745814,0.23048,2173.7,2172.7,0.92412073]
[1770238746013,0.461,2173.6,2172.7,0.92412073]
[1770238746415,40.8,2173.1,2172.7,0.92412073]
[1770238746815,40.8,2173.1,2172.7,1.44068026]
[1770238747214,40.8,2173.1,2172.1,4.34565231]
[1770238747413,40.8,2173.1,2172.2,4.81079474]
[1770238747616,40.8,2173.1,2172.3,4.81079474]
[1770238747815,0.45065456,2173.0,2172.1,3.66434775]
[1770238748110,40.8,2173.1,2171.2,7.84300893]
[1770238748111,40.8,2173.1,2171.2,0.23074]
[1770238748312,40.8,2173.1,2171.1,5.48666975]
[1770238748313,0.23058,2172.8,2171.3,5.02694897]
[1770238748518,0.23058,2172.8,2171.4,4.79621897]
[1770238748725,0.23058,2172.8,2171.5,4.79621897]
[1770238748918,0.23058,2172.8,2171.3,0.23073]
[1770238749117,0.23058,2172.8,2171.5,0.50803413]
[1770238750725,0.69159,2172.7,2171.5,0.50803413]
[1770238750926,0.2306,2172.6,2171.5,0.50803413]
[1770238755021,0.23062,2172.4,2171.5,0.50803413]
[1770238755326,0.23582407,2172.4,2171.5,0.50803413]
[1770238755525,0.00520407,2172.4,2171.5,0.50803413]
[1770238768030,0.00869501,2172.4,2171.5,0.50803413]
[1770238769631,0.23931501,2172.4,2171.5,0.50803413]
[1770238770123,0.00429369,2172.3,2171.5,0.50803413]
[1770238770820,40.8,2172.2,2171.5,0.50803413]
[1770238775131,40.81219346,2172.2,2171.5,0.50803413]
[1770238775333,0.31677103,2172.1,2171.3,0.00480096]
[1770238777533,0.31677103,2172.1,2171.3,0.5098769]
[1770238778428,40.8,2172.2,2171.3,0.5098769]
[1770238779430,40.8,2172.2,2171.5,0.50507594]
[1770238780036,0.30556113,2172.1,2171.3,0.00480096]
[1770238780534,0.30556113,2172.1,2171.3,0.5098769]
[1770238781327,40.8,2172.2,2171.3,0.5098769]
[1770238783039,41.10735367,2172.2,2171.3,0.5098769]
[1770238783535,0.31021486,2172.1,2171.3,0.5098769]
[1770238784139,40.8,2172.2,2171.3,0.5098769]
[1770238784637,41.11021486,2172.2,2171.3,0.5098769]
[1770238785234,0.3180233,2172.7,2171.5,0.50507594]
[1770238785434,0.3180233,2172.6,2171.5,0.50507594]
[1770238786136,40.8,2172.1,2171.5,0.50507594]
[1770238786337,40.80451022,2172.1,2171.5,0.50507594]
[1770238786542,0.49360489,2172.6,2171.5,0.50507594]
[1770238787230,11.723,2172.9,2171.5,0.50507594]
[1770238787437,40.8,2172.4,2171.6,0.50507594]
[1770238787639,0.49360489,2172.3,2171.6,0.50507594]
[1770238788134,41.35460489,2172.3,2171.3,0.00480096]
[1770238788336,0.49360489,2172.2,2171.4,4.72905547]
[1770238788535,0.49360489,2172.2,2171.3,0.00480096]
[1770238788536,0.49360489,2172.2,2171.5,4.96052592]
[1770238788737,0.49360489,2172.2,2171.5,0.23071]
[1770238789231,40.861,2172.3,2171.5,0.23071]
[1770238789432,40.861,2172.3,2171.6,4.72840204]
[1770238789631,0.49360489,2172.2,2171.3,4.13736167]
[1770238789835,0.49360489,2172.2,2171.4,4.72865586]
[1770238790138,0.49360489,2172.2,2171.7,0.8469]
[1770238790634,40.861,2172.3,2171.7,1.35197594]
[1770238791234,40.861,2172.3,2171.4,2.98463366]
[1770238791235,0.49360489,2172.2,2171.4,2.98463366]
[1770238791636,0.49360489,2172.2,2171.5,4.71529265]
[1770238791838,0.49360489,2172.2,2171.4,0.23072]
[1770238792041,0.49360489,2172.2,2171.5,4.71794212]
[1770238792341,40.861,2172.3,2171.5,2.75391366]
[1770238792543,40.861,2172.3,2171.6,4.79079013]
[1770238792839,40.861,2172.3,2171.6,0.0738]
[1770238793137,41.29360489,2172.4,2171.6,0.0738]
[1770238793138,40.8,2172.4,2171.7,7.46699991]
[1770238793343,0.51245159,2172.9,2172.1,0.23065]
[1770238794238,0.5080457,2172.7,2171.8,2.75391366]
[1770238794438,41.568,2172.6,2171.8,2.75391366]
[1770238794634,41.568,2172.6,2171.9,4.7084402]
[1770238794835,41.568,2172.6,2171.9,0.23066]
[1770238795035,0.5080457,2172.5,2171.9,0.23066]
[1770238795241,0.5080457,2172.5,2171.7,2.75391366]
[1770238795542,0.5080457,2172.5,2171.8,4.70779442]
[1770238795743,0.5080457,2172.5,2171.6,2.82771366]
[1770238796145,0.5080457,2172.5,2171.6,0.0738]
[1770238796347,0.5080457,2172.5,2171.7,4.69296833]
[1770238796546,0.5080457,2172.5,2171.6,2.82771366]
[1770238796939,0.5080457,2172.5,2171.6,0.0738]
[1770238797139,0.5080457,2172.5,2171.5,2.98462366]
[1770238797339,0.51037399,2172.3,2171.3,2.75871462]
[1770238797544,0.51037399,2172.3,2171.4,7.44437161]
[1770238797744,0.51037399,2172.3,2171.4,2.75391366]
[1770238798043,0.51037399,2172.3,2171.4,2.98463366]
[1770238798239,40.8,2172.8,2172.2,0.23064]
[1770238798447,0.52060529,2172.9,2172.3,4.68486416]
[1770238798644,0.5160041,2172.7,2172.0,2.75391366]
[1770238798843,0.5160041,2172.7,2172.1,4.68631245]
[1770238799039,0.52060529,2172.9,2172.1,2.75391366]
[1770238799249,0.51600526,2172.8,2172.0,0.23066]
[1770238799446,41.32055176,2172.7,2172.0,0.23066]
[1770238800144,40.8,2172.7,2172.0,0.23066]
[1770238800344,0.52515295,2172.9,2172.0,4.36322071]
[1770238800542,0.00460119,2172.9,2172.2,4.36319071]
[1770238800945,5.12915295,2172.9,2172.2,0.23063]
[1770238801145,0.52055176,2172.8,2172.2,0.23063]
[1770238801344,40.8,2172.7,2172.2,0.23063]
[1770238801551,41.3248337,2172.7,2172.2,0.23063]
[1770238801849,40.8,2172.7,2172.2,0.23063]
[1770238803046,0.5248337,2172.6,2171.7,4.82425071]
[1770238803252,41.32581141,2172.7,2171.8,4.13256071]
[1770238803448,40.8,2172.7,2171.8,4.36324071]
[1770238804551,40.8,2172.7,2171.8,0.23068]
[1770238804745,40.8,2172.7,2171.8,4.36324071]
[1770238805148,0.52581141,2172.5,2172.0,0.23065]
[1770238805347,5.12981141,2172.5,2171.7,0.461]
[1770238805552,41.3264975,2172.7,2171.7,0.461]
[1770238805753,41.3264975,2172.7,2171.7,4.59356071]
[1770238806351,41.3264975,2172.7,2172.0,0.23065]
[1770238806856,45.9304975,2172.7,2172.0,0.23065]
[1770238807157,41.3264975,2172.7,2171.7,4.59356071]
[1770238807458,0.52643497,2172.5,2171.5,0.23071]
[1770238807753,41.32643497,2172.7,2171.4,5.19388071]
[1770238808154,0.52643497,2172.6,2171.6,0.6097]
[1770238809057,40.8,2172.7,2171.8,0.23068]
[1770238809658,40.8,2172.7,2171.9,0.23067]
[1770238809852,40.8,2172.7,2172.0,0.23066]
[1770238810055,40.8,2172.7,2172.1,0.23064]
[1770238810456,0.00460119,2172.9,2172.1,0.23064]
[1770238810856,40.8,2172.8,2172.1,0.23064]
[1770238811058,0.52808162,2172.7,2172.1,0.23064]
[1770238811358,0.52808162,2172.5,2172.1,0.23064]
[1770238811561,0.52529954,2172.7,2172.1,0.23064]
[1770238812359,5.12929954,2172.7,2172.1,0.23064]
[1770238812556,4.604,2172.7,2172.1,0.23064]
[1770238812761,40.8,2172.8,2172.2,0.23064]
[1770238812961,0.00460119,2172.9,2172.4,0.23061]
[1770238813163,0.52529954,2173.1,2172.4,0.23061]
[1770238813361,0.461,2173.5,2172.4,0.23061]
[1770238813362,0.52451219,2173.4,2172.4,0.23061]
[1770238813568,0.52451219,2173.6,2172.8,0.23057]
[1770238814057,40.8,2173.3,2172.8,0.23057]
[1770238814262,41.32451219,2173.3,2172.8,0.23057]
[1770238814462,45.92851219,2173.3,2172.8,0.23057]
[1770238814964,41.32451219,2173.3,2172.8,0.23057]
[1770238815159,45.92851219,2173.3,2172.8,0.23057]
[1770238815857,0.53046486,2173.6,2172.6,4.49949054]
[1770238816053,0.65,2174.1,2173.2,0.69686205]
[1770238816355,1.111,2174.3,2173.2,0.23052]
[1770238816554,4.604,2173.9,2173.2,0.23052]
[1770238817062,4.604,2173.7,2173.2,0.2340764]
[1770238817263,4.604,2173.6,2173.2,0.2340764]
[1770238817864,3.85088,2173.6,2173.2,0.70288884]
[1770238818065,40.8,2173.8,2173.2,0.70288884]
[1770238818362,0.00584894,2173.9,2173.3,0.46881244]
[1770238818564,8.94e-06,2173.9,2173.3,0.46881244]
[1770238818762,8.94e-06,2173.9,2173.4,0.23051]
[1770238818956,40.8,2173.8,2173.4,0.69932244]
[1770238819465,8.94e-06,2173.9,2173.6,0.47223529]
[1770238819659,0.65,2174.3,2173.6,0.47223529]
[1770238819856,1.11739274,2174.5,2173.7,0.47223529]
[1770238820262,4.96827274,2174.5,2173.7,0.47223529]
[1770238820564,44.65088,2174.4,2173.7,0.47223529]
[1770238820760,3.85088,2173.8,2173.2,0.47579169]
[1770238820956,4.31827274,2174.1,2173.2,4.96708281]
[1770238821158,0.46739274,2173.8,2173.2,0.0035564]
[1770238821466,0.46739274,2173.8,2172.4,6.91895463]
[1770238821467,0.46739274,2173.2,2172.3,0.23063]
[1770238821666,0.46739274,2173.2,2172.4,0.47643934]
[1770238821861,0.46,2174.2,2172.5,0.47643934]
[1770238822056,0.46,2174.2,2172.4,4.50026333]
[1770238822057,0.46739274,2173.8,2172.6,4.49840223]
[1770238822262,0.46739274,2173.5,2172.2,1.16707934]
[1770238822458,0.46739274,2173.2,2172.2,1.17157685]
[1770238822961,0.46739274,2173.0,2172.2,1.17157685]
[1770238823160,0.46739274,2173.0,2172.2,0.46449751]
[1770238823365,0.46739274,2172.6,2172.2,0.46449751]
[1770238823563,0.47065855,2172.6,2172.2,0.46449751]
[1770238823765,3.85088,2172.4,2172.2,0.00449751]
[1770238824664,3.85088,2172.4,2171.9,4.97875977]
[1770238824857,41.27065855,2172.6,2171.9,4.97875977]
[1770238825057,45.12153855,2172.6,2171.9,4.97875977]
[1770238825262,45.12153855,2172.6,2171.9,0.47643934]
[1770238825564,45.12153855,2172.6,2171.9,4.98536701]
[1770238825868,45.12153855,2172.6,2172.0,0.23066]
[1770238826066,40.80326581,2172.6,2172.1,0.48752724]
[1770238826271,0.00326581,2172.6,2172.1,0.48752724]
[1770238827563,0.00326581,2172.6,2172.2,0.48816587]
[1770238830369,3.85088,2172.4,2172.3,0.6135]
[1770238830570,4.31118366,2172.4,2171.9,0.00529186]
[1770238830765,3.85088,2172.3,2172.0,4.51149384]
[1770238830971,3.85088,2172.4,2171.9,0.49277528]
[1770238831266,3.85088,2172.4,2172.0,4.5120455]
[1770238831471,2.86294172,2172.4,2171.9,0.49277528]
[1770238831671,2.38529172,2172.4,2172.0,4.51166058]
[1770238831872,1.83453172,2172.4,2171.9,0.72344528]
[1770238832073,0.46356947,2172.6,2172.0,4.51152652]
[1770238832272,1.83453172,2172.5,2171.9,4.85600599]
[1770238832475,1.83453172,2172.5,2172.0,4.51133285]
[1770238832673,1.83453172,2172.4,2171.9,4.85600599]
[1770238832874,1.83453172,2172.5,2172.0,4.51130322]
[1770238833169,1.83453172,2172.5,2172.0,0.23066]
[1770238833374,0.00326581,2172.6,2172.1,4.74161365]
[1770238833571,0.00326581,2172.6,2172.1,0.23064]
[1770238833876,0.50751251,2173.9,2172.3,0.23063]
[1770238834074,0.50751251,2173.8,2172.3,0.23063]
[1770238834275,0.50751251,2173.8,2172.4,0.23062]
[1770238834474,0.50751251,2173.5,2172.4,0.23062]
[1770238834876,0.51327727,2173.5,2172.5,4.51006514]
[1770238835076,0.50751251,2173.9,2172.9,1.06062]
[1770238835279,0.65,2174.5,2173.6,0.23049]
[1770238835476,0.65,2175.0,2173.6,0.23049]
[1770238835678,40.8,2174.9,2173.7,0.23048]
[1770238836275,40.80444003,2174.9,2173.7,0.23456308]
[1770238836674,40.80444003,2174.9,2173.7,0.00408308]
[1770238836880,40.80444003,2174.9,2174.1,0.48816587]
[1770238837075,40.80444003,2174.9,2174.1,4.98193035]
[1770238837280,40.80444003,2174.9,2174.2,0.48816587]
[1770238837677,0.00444003,2174.9,2174.3,5.22534103]
[1770238837874,0.17384003,2175.1,2174.7,0.48816587]
[1770238838081,40.8,2175.4,2174.7,0.48816587]
[1770238838581,0.46030366,2175.3,2174.0,4.82300071]
[1770238838781,0.46395854,2175.3,2174.0,0.69044]
[1770238839482,0.46395854,2175.3,2174.0,0.46]
[1770238841785,0.46395854,2175.3,2173.7,0.00408308]
[1770238841986,0.46395854,2175.3,2173.7,0.72271895]
[1770238843386,0.46395854,2175.3,2173.8,0.48816587]
[1770238843588,0.46030366,2175.1,2174.0,0.71861587]
[1770238843985,0.46030366,2175.1,2174.0,0.23045]
[1770238844785,0.46030366,2175.1,2173.7,0.00408308]
[1770238844986,0.46030366,2174.9,2173.1,0.69054]
[1770238845191,0.46030366,2174.5,2172.8,0.48816587]
[1770238845391,0.46030366,2174.5,2172.7,4.50813994]
[1770238845683,1.05971,2174.8,2172.6,0.23059]
[1770238845684,0.46030366,2174.3,2172.6,0.23059]
[1770238845890,0.69072366,2174.3,2172.6,0.23059]
[1770238846188,0.46030366,2174.2,2172.6,4.74414413]
[1770238846391,0.46030366,2174.0,2172.6,4.74414413]
[1770238846591,0.46030366,2174.0,2172.6,0.23490536]
[1770238847389,0.46030366,2174.0,2172.9,0.47448261]
[1770238847585,0.46030366,2174.0,2173.0,0.47448261]
[1770238847789,0.46030366,2174.0,2173.2,0.47448261]
[1770238848083,0.46030366,2174.7,2173.2,0.47448261]
[1770238848990,0.46030366,2174.0,2172.6,0.23490536]
[1770238849190,0.46030366,2173.8,2172.6,0.23490536]